[Event "57th Biel Festival MTO 2024"]
[White "Sokolovsky,Yahli"]
[Black "Emmenecker,Pierre-Antoine"]
[Site "Biel"]
[Round "2.14"]
[Annotator "TA"]
[Result "1-0"]
[Date "2024.07.16"]
[WhiteElo "2492"]
[BlackElo "2306"]
[PlyCount "63"]
[TimeControl "60"]

{[%evp 14,63,25,35,19,22,29,14,45,26,15,29,31,25,25,22,65,53,143,138,134,156,130,129,150,162,155,150,209,198,233,320,315,321,335,338,306,312,610,622,610,390,738,466,472,460,466,456,677,653,1047,983]} 1. e4 {[%emt 0:0:3]} e5 {[%emt 0:0:4]} 2. Nf3 {[%emt 0:0:6]} Nf6 {[%emt 0:0:4]} 3. Nxe5 {[%emt 0:0:10]} d6 {[%emt 0:0:6]} 4. Nf3 {[%emt 0:0:37]} Nxe4 {[%emt 0:0:7]} 5. Nc3 {[%emt 0:0:50]} Nxc3 {[%emt 0:0:11]} 6. dxc3 {[%emt 0:0:5]} Nc6 {[%emt 0:0:33]} 7. Be3 {[%emt 0:0:41]} Be7 {[%emt 0:0:9]} 8. Qd2 {[%emt 0:6:32]} Bf5 {[%emt 0:0:13]} 9. O-O-O {[%emt 0:19:26]} Qd7 {[%emt 0:0:8]} 10. Be2 {[%emt 0:3:35]} Bf6 {[%emt 0:14:50] The position is equal.} 11. Rhe1 {[%emt 0:12:6]} O-O {[%emt 0:10:26]} 12. h3 {[%emt 0:0:57]} Rae8 {[%emt 0:11:4]} 13. g4 {[%emt 0:5:4][%cal Bg2g4,Bg4g5][%mdl 32]} Be4 {[%emt 0:0:40]} 14. Kb1 {[%emt 0:2:32]} Ne5 {[%emt 0:19:59]} 15. Nxe5 {[%emt 0:4:46]} Bxe5 {[%emt 0:6:48] Black is now going downhill.} ({Black should play} 15... Rxe5 $14 16. Bd4 (16. Bxa7 $2 b6 $19 )Re6 )16. f3 $1 $16 {[%emt 0:2:14][%cal Bf2f3,Bf3f4,Bf4f5,Bf5f6][%mdl 32]} (16. Bxa7 b6 17. a3 g6 $17 )Bc6 {[%emt 0:0:59]} 17. f4 $1 {[%emt 0:0:49]} (17. Bxa7 $6 b6 $11 )Bf6 {[%emt 0:0:48]} 18. g5 $1 {[%emt 0:0:18]} (18. Bxa7 Bh4 19. Be3 Re7 $19 (19... Bxe1 20. Rxe1 Re7 21. Bd3 $19 ))Be7 {[%emt 0:5:37]} (18... Qxh3 $2 19. Bf1 Qf5 20. Bd3 $18 (20. gxf6 g6 $18 ))19. Bg4 {[%emt 0:0:12]} (19. Bxa7 b6 $11 )Qd8 {[%emt 0:0:1]} 20. f5 $36 {[%emt 0:1:46][%mdl 2048] Keeping Black busy. White is much more active.} (20. Bxa7 b6 21. Re3 g6 $11 )Be4 {[%emt 0:8:33]} (20... f6 $16 )21. c4 $18 {[%emt 0:16:21]} (21. Bxa7 Bxg5 22. Qd4 Bc6 $17 )c6 {[%emt 0:4:25]} 22. Bf4 $1 {[%emt 0:15:1][%cal Be3f4,Bf4h6,Bh6f4][%mdl 32]} ({Inferior is} 22. Bxa7 Bxg5 23. Be3 Bxe3 24. Rxe3 d5 $11 )d5 {[%emt 0:0:32][%cal Bd6d5,Bd5e4,Be4e3][%mdl 32] [#]} 23. f6 $1 {[%emt 0:0:6][%mdl 512]} gxf6 {[%emt 0:2:47] [#]} 24. Rxe4 $1 {[%emt 0:0:7][%mdl 512]} dxe4 {[%emt 0:5:5]} 25. Qc3 {[%emt 0:0:7]} Qb6 {[%emt 0:5:14]} (25... fxg5 26. Rxd8 Bxd8 )26. gxf6 {[%emt 0:0:18]} Bc5 {[%emt 0:2:25]} 27. Bh6 {[%emt 0:14:27] This pair of bishops is nice.} Qc7 {[%emt 0:7:14] Against Qg3} (27... Kh8 28. Bg7+ Kg8 )28. Qd2 {[%emt 0:0:24] White wants to mate with Qg5+. White is clearly winning.} Qe5 {[%emt 0:0:39][%cal Oe5f6] [#]} 29. Rf1 {[%emt 0:0:2][%cal Of1f5] Black must now prevent Rf5!} e3 {[%emt 0:2:1]} 30. Qe2 {[%emt 0:0:48]} Qg3 {[%emt 0:2:31]} (30... Bd4 $142 31. Bf5 Qxf6 32. Bxh7+ (32. Bxf8 Kxf8 33. c3 Bb6 $17 )Kxh7 33. Rxf6 Bxf6 34. Bxf8 Rxf8 35. Qd3+ (35. Qxe3 Bg7 $18 )Kg8 36. Qxe3 b6 )31. Bf5 {[%emt 0:0:1]} Re5 {[%emt 0:1:10]} 32. Bf4 {[%emt 0:0:58] Weighted Error Value: White=0.30/Black=0.57.  Mistake:       	---       	Black=4      Inaccurate:     	---       	Black=3      OK:         	White=8     	Black=11     Best:        	White=3     	Black=1      Strong:       	White=3     	---        Brilliant:      	White=2     	---} 1-0

[Event "57th Biel Festival MTO 2024"]
[White "Gloeckler,Christian"]
[Black "Madaminov,Mukhiddin"]
[Site "Biel"]
[Round "2.15"]
[Annotator "TA"]
[Result "0-1"]
[Date "2024.07.16"]
[WhiteElo "2304"]
[BlackElo "2517"]
[PlyCount "116"]
[TimeControl "60"]

{[%evp 50,115,62,34,36,0,8,0,0,0,0,0,0,0,0,-19,-12,0,0,0,0,0,-43,-54,-62,-40,-40,-52,-45,-69,-45,-52,-25,-33,-21,-54,0,-18,0,-73,-47,-95,-25,-35,-44,-50,0,-25,0,-52,-50,-53,0,-42,0,0,0,0,0,0,0,0,0,-112,-98,-1233,-1222,-5110]} 1. e4 {[%emt 0:0:2]} e5 {[%emt 0:1:17]} 2. Nf3 {[%emt 0:0:10]} Nc6 {[%emt 0:0:18]} 3. Bb5 {[%emt 0:0:12]} a6 {[%emt 0:0:36]} 4. Ba4 {[%emt 0:0:19]} Nf6 {[%emt 0:0:34]} 5. O-O {[%emt 0:0:16]} Bc5 {[%emt 0:0:35]} 6. c3 {[%emt 0:0:20]} b5 {[%emt 0:0:10]} 7. Bb3 {[%emt 0:0:11]} d6 {[%emt 0:0:39]} 8. d4 {[%emt 0:0:7]} Bb6 {[%emt 0:0:11]} 9. Be3 {[%emt 0:0:13]} O-O {[%emt 0:2:54]} 10. Nbd2 {[%emt 0:1:58]} h6 {[%emt 0:3:35]} 11. h3 {[%emt 0:1:47]} Re8 {[%emt 0:0:40]} 12. Re1 {[%emt 0:2:31] C78: Ruy Lopez: Archangelsk and Möller Defences.} exd4 {[%emt 0:1:45]} 13. cxd4 {[%emt 0:0:50]} Nb4 {[%emt 0:0:20]} 14. Qb1 {[%emt 0:2:22]} c5 {[%emt 0:8:25]} 15. a3 {[%emt 0:1:57]} Nc6 {[%emt 0:0:26]} 16. d5 {[%emt 0:2:52]} Ne7 {[%emt 0:4:42]} 17. Bc2 {[%emt 0:7:10]} Ng6 {[%emt 0:2:42]} 18. b4 $146 {[%emt 0:23:42]} ({Predecessor:} 18. Nf1 Bd7 19. Ng3 c4 20. Nd4 Rc8 21. Ndf5 Bxf5 22. Nxf5 Bxe3 23. Rxe3 Ne7 24. Nd4 {0-1 Antolak,J (2306)-Cyfka,K (2415) Insignis Women's Day 2021 (5.2)} )c4 {[%emt 0:8:48]} 19. Bxb6 {[%emt 0:7:50]} Qxb6 {[%emt 0:0:9]} 20. Qb2 {[%emt 0:0:8]} Ne5 {[%emt 0:3:49]} 21. Nxe5 {[%emt 0:7:2]} dxe5 {[%emt 0:0:25]} 22. a4 {[%emt 0:6:8]} Bb7 {[%emt 0:10:21]} 23. Nf3 {[%emt 0:2:31]} Nd7 {[%emt 0:1:45]} 24. Qc3 {[%emt 0:6:22]} Qd6 {[%emt 0:2:59]} 25. Nh4 {[%emt 0:2:43]} Qf6 {[%emt 0:5:7]} 26. g3 {[%emt 0:3:36]} g6 {[%emt 0:0:53]} 27. a5 {[%emt 0:4:39]} Qd6 {[%emt 0:5:41]} 28. Ng2 {[%emt 0:6:14]} Rad8 {[%emt 0:1:56]} 29. Rad1 {[%emt 0:1:36]} Nf6 {[%emt 0:0:24]} 30. Ne3 {[%emt 0:1:41]} Bc8 {[%emt 0:0:25]} 31. Kg2 {[%emt 0:0:20]} Nh5 {[%emt 0:2:5]} 32. Ng4 {[%emt 0:3:34]} Bxg4 {[%emt 0:1:35]} 33. hxg4 {[%emt 0:0:9]} Nf6 {[%emt 0:0:5]} 34. f3 {[%emt 0:1:33]} h5 {[%emt 0:2:38]} 35. g5 {[%emt 0:3:31]} Nh7 {[%emt 0:0:24]} 36. f4 {[%emt 0:5:4]} exf4 {[%emt 0:1:34]} 37. e5 {[%emt 0:0:19]} f3+ $1 {[%emt 0:0:39]} 38. Kxf3 {[%emt 0:0:47]} Qe7 {[%emt 0:4:39]} (38... Nxg5+ 39. Kf2 Qe7 40. Re3 $11 )39. Kg2 {[%emt 0:1:38]} Qxg5 {[%emt 0:0:6]} 40. Qd4 {[%emt 0:0:49]} Nf8 {[%emt 0:4:23]} 41. Qf4 {[%emt 0:21:49]} Qe7 {[%emt 0:0:8]} (41... Qg4 {looks sharper.} 42. Be4 Nd7 43. Bc2 Re7 )42. Qd2 {[%emt 0:7:48]} (42. d6 {keeps more tension.} Qe6 43. Re3 Qg4 44. Re4 )Ne6 {[%emt 0:9:48]} (42... f5 $15 )43. Qf2 {[%emt 0:3:20]} (43. d6 $5 Qg5 44. Be4 $11 )Nf8 {[%emt 0:3:18]} ({Black should try} 43... Qb7 $11 )44. Qd2 $17 {[%emt 0:0:40]} Qb7 {[%emt 0:1:38]} 45. Kh2 {[%emt 0:2:29]} (45. Qd4 $15 )Qd7 {[%emt 0:2:21]} (45... f5 $17 )46. Qd4 {[%emt 0:2:2]} Qe7 {[%emt 0:3:29]} 47. Qd2 {[%emt 0:1:50]} Ne6 {[%emt 0:0:7]} ({Black should play} 47... Kg7 $15 )48. Qf2 {[%emt 0:0:26]} Nf8 {[%emt 0:1:15]} 49. Qd2 {[%emt 0:0:32]} Nh7 {[%emt 0:0:37]} 50. Kg2 {[%emt 0:4:20]} Qg5 {[%emt 0:1:32]} 51. Qd4 {[%emt 0:0:52]} Qg4 {[%emt 0:3:25]} 52. Re4 $1 {[%emt 0:1:43]} Qd7 {[%emt 0:0:9]} 53. Qb6 {[%emt 0:1:29]} Qf5 {[%emt 0:7:25]} 54. Rf1 {[%emt 0:1:59]} Qg5 {[%emt 0:0:5]} 55. Rf2 $1 {[%emt 0:6:18]} h4 {[%emt 0:4:22]} (55... Rxd5 $5 56. Qb7 $8 Rexe5 57. Qxf7+ Kh8 $14 )56. Rxh4 {[%emt 0:3:39]} (56. e6 $1 $11 fxe6 (56... Rxd5 57. exf7+ Kg7 58. fxe8=Q Qxg3+ 59. Kf1 )(56... Qxg3+ 57. Kh1 $11 )57. Rxh4 )Qxe5 $17 {[%emt 0:0:17]} (56... Rxd5 $2 57. Qb7 (57. Qxa6 $2 Rdxe5 $19 )Qe7 58. Qxd5 $18 )(56... Rxe5 $2 57. Bxg6 fxg6 58. Rg4 Rexd5 (58... Qxg4 $2 59. Qxd8+ Kg7 60. Qc7+ Kh6 61. Qxe5 $18 )(58... Qe7 $2 59. Qxg6+ Kh8 60. Rf7 $18 )59. Rxg5 Nxg5 60. Qxg6+ (60. Qxa6 Kh7 $18 )Kh8 61. Qxa6 $18 )57. Rxh7 $2 {[%emt 0:1:29][%mdl 8192]} (57. Bxg6 $17 fxg6 (57... Qxd5+ $2 {is the wrong capture.} 58. Kh2 $18 )58. Qxg6+ Qg7 59. Rg4 Qxg6 60. Rxg6+ Kh8 61. Rf7 )Qxd5+ $19 {[%emt 0:0:28]} ({Inferior is} 57... Kxh7 58. Rxf7+ Kh8 59. Rh7+ (59. Qxa6 {is a self mate.} Qxd5+ )Kxh7 60. Qxg6+ Kh8 61. Qh7# )58. Kf1 {[%emt 0:0:56]} Kxh7 {[%emt 0:0:17]} 0-1

[Event "57th Biel Festival MTO 2024"]
[White "Valsecchi,Alessio"]
[Black "Shoshin,Kirill"]
[Site "Biel"]
[Round "2.16"]
[Annotator "TA"]
[Result "1/2-1/2"]
[Date "2024.07.16"]
[WhiteElo "2483"]
[BlackElo "2277"]
[PlyCount "70"]
[TimeControl "60"]

{[%evp 9,70,9,10,2,-4,-16,-4,-23,4,-5,0,-4,8,-21,-27,-16,-20,-39,0,0,2,-18,-20,-18,-20,-8,-10,-14,-12,-37,-34,-106,-35,-35,-37,-48,-54,-47,-40,-89,-52,-48,-9,-21,0,-37,-10,-54,-41,-114,-102,-99,-95,-88,-86,-81,-114,-78,0,-21,0,-83,0]} 1. e4 {[%emt 0:0:3]} c5 {[%emt 0:0:5]} 2. Nf3 {[%emt 0:0:13]} Nc6 {[%emt 0:0:6]} 3. Bb5 {[%emt 0:0:31]} g6 {[%emt 0:0:8]} 4. c3 {[%emt 0:0:58]} Nf6 {[%emt 0:4:25]} 5. Qe2 {[%emt 0:0:34]} e5 {[%emt 0:7:19]} 6. O-O {[%emt 0:4:53]} Bg7 $1 {[%emt 0:3:4]} 7. d4 {[%emt 0:1:7]} cxd4 {[%emt 0:2:42]} 8. cxd4 {[%emt 0:0:41] The position is equal.} Nxd4 {[%emt 0:15:48]} 9. Nxd4 {[%emt 0:0:22]} exd4 {[%emt 0:0:4]} 10. e5 {[%emt 0:5:36][%cal Be4e5,Be5e6][%mdl 32]} Nd5 {[%emt 0:0:6]} 11. e6 {[%emt 0:3:0]} O-O {[%emt 0:0:12]} 12. exf7+ {[%emt 0:0:33]} Kh8 $1 {[%emt 0:0:6][%cal Od8f6]} ({Much worse is} 12... Rxf7 $6 13. Bc4 Qe7 14. Qxe7 Nxe7 15. Bxf7+ Kxf7 16. Nd2 $14 )13. Na3 {[%emt 0:11:51]} a6 {[%emt 0:9:41]} (13... Rxf7 {simplifies} 14. Bc4 Nf4 15. Bxf4 Rxf4 16. Qd2 Rf8 )14. Bc4 {[%emt 0:10:39]} Nb6 {[%emt 0:1:9]} 15. Bf4 {[%emt 0:5:50] Bd6 is the strong threat.} d5 {[%emt 0:2:3]} 16. Bd3 {[%emt 0:0:56]} Qf6 {[%emt 0:5:39] Dodges Be5} 17. Qd2 {[%emt 0:7:18]} Rxf7 {[%emt 0:3:44]} 18. Bg5 {[%emt 0:2:13]} Qd6 $36 {[%emt 0:0:36][%mdl 2048] Black fights for an advantage.} 19. Rae1 {[%emt 0:9:23]} Bd7 {[%emt 0:7:6] Dodges Re8+} 20. Bh4 {[%emt 0:13:10]} (20. Bh6 $1 $15 )Qf4 {[%emt 0:11:21]} (20... Na4 $17 {And now ...Kg8 would win.} 21. Bg3 Qb6 )21. Qxf4 $15 {[%emt 0:0:58]} Rxf4 {[%emt 0:0:3]} 22. Bg3 {[%emt 0:0:18]} Rf7 {[%emt 0:4:54]} 23. b3 {[%emt 0:0:42] Prevents Na4} Rc8 {[%emt 0:1:55]} 24. Re2 {[%emt 0:8:51]} (24. Nc2 $15 {was preferrable.} )Bf5 {[%emt 0:5:31]} (24... Na4 {seems wilder.} 25. bxa4 Rc3 26. Bb5 d3 )25. Bxf5 {[%emt 0:1:44]} Rxf5 {[%emt 0:6:16]} (25... gxf5 $5 26. f3 d3 $15 )26. Rd1 {[%emt 0:2:21]} Nd7 {[%emt 0:2:8]} (26... Nc4 $5 27. bxc4 dxc4 $15 )27. f3 {[%emt 0:2:57]} Ne5 {[%emt 0:3:48]} 28. Rc2 {[%emt 0:4:12]} Nc6 {[%emt 0:1:51]} 29. Bf2 {[%emt 0:1:15] [#]} (29. Kf1 $15 )Re8 $1 $17 {[%emt 0:0:28]} 30. Kf1 {[%emt 0:1:14] [#] Wards off d3} d3 $1 {[%emt 0:1:13]} 31. Rcd2 {[%emt 0:3:16]} (31. Rxd3 $2 {perishes.} Bf8 32. Rxc6 bxc6 $19 )Nb4 {[%emt 0:0:18] Hoping for ...Bh6.} 32. Nb1 {[%emt 0:1:10]} Bh6 {[%emt 0:1:10]} 33. Rb2 {[%emt 0:0:14]} Bg7 {[%emt 0:0:39]} (33... d2 $17 34. Bd4+ (34. Nxd2 Bg7 $17 )Kg8 35. Nxd2 Rc8 )34. Rbd2 $11 {[%emt 0:0:6]} Bh6 {[%emt 0:0:10]} (34... d4 $11 35. a3 Nc2 36. Rxd3 Kg8 )35. Rb2 $1 $17 {[%emt 0:0:5]} Bg7 {[%emt 0:4:58] Weighted Error Value: White=0.15 (very precise) /Black=0.13 (very precise) .  Mistake:       	White=3     	Black=4      Inaccurate:     	White=3     	Black=5      OK:         	White=11    	Black=7      Best:        	White=4     	Black=3      Strong:       	White=1     	Black=3      Brilliant:      	---       	Black=1} (35... d2 $17 36. Bd4+ (36. Nxd2 Bg7 $17 )Kg8 37. Nxd2 Rc8 )1/2-1/2

[Event "57th Biel Festival MTO 2024"]
[White "Toktomushev,Teimur"]
[Black "Macovei,Andrei"]
[Site "Biel"]
[Round "2.17"]
[Annotator "RC"]
[Result "1/2-1/2"]
[Date "2024.07.16"]
[WhiteElo "2300"]
[BlackElo "2479"]
[PlyCount "82"]
[TimeControl "60"]

1. d4 {[%emt 0:1:6]} Nf6 {[%emt 0:0:10]} 2. c4 {[%emt 0:0:25]} e6 {[%emt 0:0:13]} 3. Nf3 {[%emt 0:0:8]} d5 {[%emt 0:1:16]} 4. Nc3 {[%emt 0:0:12]} Bb4 {[%emt 0:0:12]} 5. Qa4+ {[%emt 0:0:8]} Nc6 {[%emt 0:0:7]} 6. e3 {[%emt 0:0:8]} O-O {[%emt 0:0:12]} 7. Qc2 {[%emt 0:0:7]} dxc4 {[%emt 0:2:36]} 8. Bxc4 {[%emt 0:0:38]} Bd6 {[%emt 0:0:4]} 9. O-O {[%emt 0:0:42]} e5 {[%emt 0:0:7]} 10. h3 {[%emt 0:8:31]} a6 {[%emt 0:0:49]} 11. a3 {[%emt 0:10:57]} h6 {[%emt 0:0:8]} 12. dxe5 {[%emt 0:36:38]} Nxe5 {[%emt 0:3:9]} 13. Nxe5 {[%emt 0:0:7]} Bxe5 {[%emt 0:0:10]} 14. Bd2 {[%emt 0:0:42]} b5 {[%emt 0:14:37]} 15. Ba2 {[%emt 0:1:42]} Bb7 {[%emt 0:14:37]} 16. Rad1 {[%emt 0:10:30]} Qe7 {[%emt 0:3:51]} 17. Rfe1 {[%emt 0:10:35]} Rad8 {[%emt 0:10:41]} 18. e4 {[%emt 0:22:46]} c5 {[%emt 0:16:20]} 19. Nd5 {[%emt 0:0:0]} Bxd5 {[%emt 0:2:33]} 20. Bxd5 {[%emt 0:7:28]} Qc7 {[%emt 0:6:48]} 21. Be3 {[%emt 0:0:0]} c4 {[%emt 0:1:15]} 22. b3 {[%emt 0:0:0]} Nxd5 {[%emt 0:3:34]} 23. exd5 {[%emt 0:0:0]} Rfe8 {[%emt 0:1:6]} 24. bxc4 {[%emt 0:0:0]} bxc4 {[%emt 0:1:12]} 25. Qa4 {[%emt 0:0:0]} c3 {[%emt 0:4:45]} 26. Bf4 {[%emt 0:0:0]} Re7 {[%emt 0:4:4]} 27. Bxe5 {[%emt 0:0:0]} Rxe5 {[%emt 0:0:14]} 28. Rxe5 {[%emt 0:0:0]} Qxe5 {[%emt 0:0:2]} 29. Qc4 {[%emt 0:0:30]} Rd6 {[%emt 0:2:46]} 30. g3 {[%emt 0:0:34]} g6 {[%emt 0:1:12]} 31. Rc1 {[%emt 0:0:45]} Rxd5 {[%emt 0:0:54]} 32. Qxc3 {[%emt 0:0:11]} Qd6 {[%emt 0:8:5]} 33. Re1 {[%emt 0:0:36]} Qd7 {[%emt 0:3:42]} 34. h4 {[%emt 0:0:41]} h5 {[%emt 0:0:30]} 35. Qf6 {[%emt 0:0:21]} Rd1 {[%emt 0:1:20]} 36. Rxd1 {[%emt 0:0:23]} Qxd1+ {[%emt 0:0:2]} 37. Kg2 {[%emt 0:0:10]} Qd5+ {[%emt 0:1:0]} 38. Qf3 {[%emt 0:0:8]} Qc4 {[%emt 0:0:12]} 39. Qe3 {[%emt 0:0:25]} Kg7 {[%emt 0:0:58]} 40. Qe5+ {[%emt 0:0:28]} Kf8 {[%emt 0:0:41]} 41. Kf3 {[%emt 0:4:15]} Qd3+ {[%emt 0:0:46]} 1/2-1/2

[Event "57th Biel Festival MTO 2024"]
[White "Saravanan,V.."]
[Black "Bilguun,Sumiya"]
[Site "Biel"]
[Round "2.18"]
[Annotator "TA"]
[Result "0-1"]
[Date "2024.07.16"]
[WhiteElo "2266"]
[BlackElo "2466"]
[PlyCount "76"]
[TimeControl "60"]

{[%evp 9,76,14,18,25,43,33,38,38,34,27,41,27,26,31,32,16,16,16,21,30,29,26,30,9,29,30,36,6,19,0,0,-34,-2,-3,-26,-57,0,-12,0,-42,-40,-50,-49,-100,-89,-79,-79,-103,-123,-104,-90,-98,-89,-94,-93,-132,-131,-131,-131,-201,-207,-220,-188,-181,-148,-212,-181,-229,-242]} 1. d4 {[%emt 0:0:4]} d5 {[%emt 0:0:27]} 2. c4 {[%emt 0:0:6]} e6 {[%emt 0:0:11]} 3. Nc3 {[%emt 0:0:13]} a6 {[%emt 0:0:29]} 4. cxd5 {[%emt 0:0:35]} exd5 {[%emt 0:0:8]} 5. Bf4 {[%emt 0:0:6]} Nf6 {[%emt 0:0:21]} 6. e3 {[%emt 0:0:6]} Nc6 {[%emt 0:10:30]} 7. Bd3 {[%emt 0:4:53]} Bd6 {[%emt 0:1:26]} 8. Nge2 {[%emt 0:3:31] White is slightly better.} Bxf4 {[%emt 0:10:0]} 9. Nxf4 {[%emt 0:0:7]} O-O {[%emt 0:0:17]} 10. O-O {[%emt 0:5:47]} Ne7 {[%emt 0:1:13]} 11. Rc1 {[%emt 0:15:43]} c6 {[%emt 0:0:17]} 12. Na4 {[%emt 0:7:39]} Bf5 {[%emt 0:5:38]} 13. Nc5 {[%emt 0:2:46]} Rb8 {[%emt 0:1:18]} 14. b4 {[%emt 0:3:47]} Ne8 {[%emt 0:12:7][%cal Bf6e8,Be8c7,Bc7b5,Bb5d6,Bd6f5][%mdl 32]} 15. a4 {[%emt 0:1:47]} Bxd3 {[%emt 0:5:48]} 16. Qxd3 {[%emt 0:0:7]} Nc7 {[%emt 0:1:12]} 17. a5 {[%emt 0:4:13]} Nb5 {[%emt 0:5:48]} 18. Nh5 {[%emt 0:4:35]} Re8 {[%emt 0:4:47]} 19. f4 {[%emt 0:0:49]} Kh8 {[%emt 0:8:48]} (19... Nd6 20. f5 Nec8 21. f6 $16 )20. g4 {[%emt 0:12:0]} Ng8 {[%emt 0:5:44]} 21. g5 {[%emt 0:4:29]} Nd6 {[%emt 0:3:57]} 22. Ng3 {[%emt 0:0:47]} g6 {[%emt 0:3:23]} ({Black should play} 22... f6 $15 )23. Rce1 {[%emt 0:3:50]} Ne7 {[%emt 0:3:53]} 24. Qd2 {[%emt 0:4:44]} Nef5 {[%emt 0:1:52]} 25. Nxf5 {[%emt 0:0:40]} Nxf5 {[%emt 0:0:54]} 26. Nd3 {[%emt 0:0:8]} (26. Rf3 $15 )h6 {[%emt 0:12:6]} 27. Ne5 {[%emt 0:1:32]} Kg7 {[%emt 0:0:9]} 28. gxh6+ {[%emt 0:6:9]} Nxh6 {[%emt 0:0:11]} 29. Kh1 {[%emt 0:1:15][%cal Of4f5]} Nf5 {[%emt 0:5:39]} 30. Rg1 {[%emt 0:1:17]} Qh4 {[%emt 0:1:22]} 31. Rg5 {[%emt 0:2:30]} Qh3 {[%emt 0:1:1]} 32. Qg2 {[%emt 0:5:46]} Qxg2+ {[%emt 0:0:43] Black is clearly better.} 33. Rxg2 {[%emt 0:0:8]} Rh8 {[%emt 0:0:56]} 34. Nd7 {[%emt 0:0:57]} (34. Ree2 $17 )Rbe8 $19 {[%emt 0:0:23]} 35. Nc5 {[%emt 0:0:31]} Re7 {[%emt 0:1:42]} (35... Rxe3 36. Rxe3 Nxe3 37. Re2 )(35... Nxe3 36. Rge2 Rh3 37. Nxb7 $11 )36. Rd2 {[%emt 0:1:52]} Rh3 {[%emt 0:1:31][%cal Og7f6]} (36... Nxe3 37. Rde2 Rh3 38. Nd3 $15 )37. Rd3 {[%emt 0:0:4]} (37. Kg2 $17 Rh7 (37... Rexe3 38. Rxe3 Rxe3 39. Nxb7 $15 )38. Rde2 )Rf3 {[%emt 0:0:37][%cal Of3f2]} (37... Rhxe3 38. Rdxe3 Nxe3 39. Kg1 $15 )38. Kg1 {[%emt 0:2:57]} (38. Kg2 {keeps fighting.} Rxf4 (38... Rfxe3 39. Rdxe3 Rxe3 40. Rxe3 $11 )39. exf4 Rxe1 40. Nxb7 )Rxf4 {[%emt 0:0:24] Weighted Error Value: White=0.18 (very precise) /Black=0.08 (flawless) .  Mistake:       	White=4     	Black=1      Inaccurate:     	White=5     	Black=1      OK:         	White=6     	Black=14     Best:        	White=2     	Black=3} ({Inferior is} 38... Rfxe3 39. Rdxe3 Rxe3 (39... Nxe3 40. Re2 $11 )40. Rxe3 Nxe3 41. Nxb7 $11 )0-1

[Event "57th Biel Festival MTO 2024"]
[White "Nurman,Alua"]
[Black "Deuer,Marius"]
[Site "Biel"]
[Round "2.19"]
[Annotator "RC"]
[Result "1/2-1/2"]
[Date "2024.07.16"]
[WhiteElo "2274"]
[BlackElo "2435"]
[PlyCount "70"]
[TimeControl "60"]

1. e4 {[%emt 0:0:5]} c6 {[%emt 0:0:5]} 2. d4 {[%emt 0:0:9]} d5 {[%emt 0:0:6]} 3. e5 {[%emt 0:0:5]} c5 {[%emt 0:0:5]} 4. Nf3 {[%emt 0:0:9]} cxd4 {[%emt 0:0:6]} 5. Qxd4 {[%emt 0:0:6]} Nc6 {[%emt 0:0:5]} 6. Qf4 {[%emt 0:0:6]} e6 {[%emt 0:0:6]} 7. Bd3 {[%emt 0:0:10]} Nb4 {[%emt 0:0:5]} 8. Nc3 {[%emt 0:0:22]} Nxd3+ {[%emt 0:0:9]} 9. cxd3 {[%emt 0:0:2]} Ne7 {[%emt 0:0:9]} 10. h4 {[%emt 0:2:30]} h5 {[%emt 0:13:17]} 11. Ne2 {[%emt 0:6:26]} Ng6 {[%emt 0:8:45]} 12. Qg3 {[%emt 0:9:50]} Bb4+ {[%emt 0:7:3]} 13. Bd2 {[%emt 0:6:43]} Bxd2+ {[%emt 0:4:38]} 14. Nxd2 {[%emt 0:0:10]} Qb6 {[%emt 0:0:3]} 15. Rb1 {[%emt 0:13:31]} Bd7 {[%emt 0:20:13]} 16. O-O {[%emt 0:8:7]} Qb4 {[%emt 0:0:48]} 17. Nf3 {[%emt 0:1:29]} Qg4 {[%emt 0:0:32]} 18. Rbc1 {[%emt 0:10:50]} Bb5 {[%emt 0:2:44]} 19. Rfd1 {[%emt 0:0:53]} a5 {[%emt 0:4:15]} 20. Ned4 {[%emt 0:16:24]} Ba6 {[%emt 0:0:57]} 21. Rc5 {[%emt 0:1:8]} b6 {[%emt 0:0:40]} 22. Rc6 {[%emt 0:0:15]} Rb8 {[%emt 0:2:23]} 23. b4 {[%emt 0:7:2]} axb4 {[%emt 0:6:17]} 24. Rb1 {[%emt 0:0:25]} Bxd3 {[%emt 0:2:15]} 25. Rxb4 {[%emt 0:0:8]} Be4 {[%emt 0:0:5]} 26. Rcxb6 {[%emt 0:5:0]} Rxb6 {[%emt 0:0:58]} 27. Rxb6 {[%emt 0:0:1]} O-O {[%emt 0:0:10]} 28. Ra6 {[%emt 0:3:10]} Bxf3 {[%emt 0:10:12]} 29. Nxf3 {[%emt 0:0:8]} Qc4 {[%emt 0:0:38]} 30. Ra7 {[%emt 0:2:56]} Nf4 {[%emt 0:5:49]} 31. Qg5 {[%emt 0:3:32]} Qc5 {[%emt 0:0:6]} 32. Rb7 {[%emt 0:6:26]} Ne2+ {[%emt 0:2:13]} 33. Kh2 {[%emt 0:0:30]} Qxf2 {[%emt 0:8:46]} 34. Rb2 {[%emt 0:5:37]} Rc8 {[%emt 0:4:14]} 35. a4 {[%emt 0:0:47]} d4 {[%emt 0:5:1]} 1/2-1/2

[Event "57th Biel Festival MTO 2024"]
[White "Materia,Marco"]
[Black "Peycheva,Gergana"]
[Site "Biel"]
[Round "2.20"]
[Annotator "TA"]
[Result "1/2-1/2"]
[Date "2024.07.16"]
[WhiteElo "2453"]
[BlackElo "2266"]
[PlyCount "70"]
[TimeControl "60"]

{[%evp 9,70,18,26,25,41,23,14,20,21,23,15,7,12,14,15,9,12,11,25,0,17,14,33,5,7,0,9,0,0,0,0,0,0,0,0,0,0,0,0,0,0,0,0,0,0,0,0,0,0,0,0,0,0,0,0,0,0,0,0,0,0,0,0]} 1. d4 {[%emt 0:0:3]} d5 {[%emt 0:0:11]} 2. c4 {[%emt 0:0:4]} e6 {[%emt 0:0:50]} 3. Nf3 {[%emt 0:0:4]} Nf6 {[%emt 0:0:55]} 4. Nc3 {[%emt 0:0:5]} Nbd7 {[%emt 0:1:24]} 5. Bf4 {[%emt 0:0:36]} dxc4 {[%emt 0:0:26]} 6. e3 $1 {[%emt 0:0:4]} Bd6 {[%emt 0:0:57]} 7. Bg3 {[%emt 0:0:4]} (7. Ne5 {is interesting.} Nb6 8. Bxc4 Nxc4 9. Qa4+ )O-O {[%emt 0:2:20]} 8. Bxc4 {[%emt 0:0:5]} Bxg3 {[%emt 0:0:59]} 9. hxg3 {[%emt 0:0:3]} c5 {[%emt 0:0:34]} 10. e4 {[%emt 0:0:19]} cxd4 {[%emt 0:8:2]} 11. Qxd4 {[%emt 0:0:12] Black must now prevent 0-0-0.} Nb6 {[%emt 0:10:51] [#] Strongly threatening ...Qxd4.} 12. Bb3 {[%emt 0:1:25]} Qxd4 {[%emt 0:5:55]} 13. Nxd4 {[%emt 0:0:2]} Rd8 {[%emt 0:6:5]} 14. Rd1 {[%emt 0:0:12]} Bd7 {[%emt 0:4:47]} 15. Ke2 {[%emt 0:4:48]} Rac8 {[%emt 0:8:45]} 16. e5 {[%emt 0:16:7]} Nfd5 {[%emt 0:6:45] The position is equal.} 17. Ne4 {[%emt 0:3:11]} Ba4 {[%emt 0:8:4]} 18. Nd6 {[%emt 0:15:3]} Bxb3 {[%emt 0:4:24]} 19. axb3 {[%emt 0:3:0]} Rb8 {[%emt 0:0:34]} 20. Rd2 {[%emt 0:2:52]} Nc8 {[%emt 0:4:49]} 21. Ne4 {[%emt 0:0:46]} Nce7 {[%emt 0:3:11]} 22. f4 {[%emt 0:12:4]} a6 {[%emt 0:4:18]} 23. Rc1 {[%emt 0:6:43]} h6 {[%emt 0:3:33]} 24. Rc4 {[%emt 0:8:29]} Nc6 {[%emt 0:5:25]} 25. Kf3 {[%emt 0:14:9]} Nxd4+ {[%emt 0:4:31]} 26. Rcxd4 {[%emt 0:1:16]} Rdc8 {[%emt 0:0:42] Prevents Nc3} 27. Rc4 {[%emt 0:1:31]} b5 {[%emt 0:1:51]} 28. Rcc2 {[%emt 0:0:4]} a5 {[%emt 0:3:19][%cal Ba6a5,Ba5a4][%mdl 32]} 29. Nd6 {[%emt 0:2:23]} Rxc2 {[%emt 0:0:55]} 30. Rxc2 $11 {[%emt 0:0:0][%mdl 4096] Endgame. KRN-KRN} a4 {[%emt 0:1:29]} 31. Rc5 {[%emt 0:5:24]} axb3 {[%emt 0:1:21]} 32. Rxb5 {[%emt 0:0:22]} Rxb5 {[%emt 0:0:13]} 33. Nxb5 {[%emt 0:0:1]} Nb6 {[%emt 0:0:6]} 34. Nd4 {[%emt 0:2:25]} Nc4 {[%emt 0:1:5]} 35. Nxb3 {[%emt 0:0:3]} Nxb2 {[%emt 0:0:4] An even fight not without its subleties.   Weighted Error Value: White=0.04 (flawless) /Black=0.02 (flawless) .  Inaccurate:     	White=1     	---        OK:         	White=7     	Black=19} 1/2-1/2